[Event "*** Titled Tuesday Blitz"]
[Site "Chess.com"]
[Date "2019.08.06"]
[Round "6"]
[White "eljanov"]
[Black "sergoy"]
[Result "1-0"]
[WhiteElo "2814"]
[BlackElo "2841"]
[TimeControl "180+2"]
[EndTime "14:22:40 PDT"]
[Termination "eljanov won by resignation"]

1. Nf3 {[%clk 0:03:01.9]} 1... Nf6 {[%clk 0:03:00.2]} 2. g3 {[%clk 0:03:02.2]}
2... g6 {[%clk 0:03:01.4]} 3. Bg2 {[%clk 0:03:03.5]} 3... Bg7 {[%clk 0:03:03]}
4. O-O {[%clk 0:03:04.8]} 4... O-O {[%clk 0:03:04.6]} 5. c4 {[%clk 0:03:06.3]}
5... c6 {[%clk 0:03:05.5]} 6. b3 {[%clk 0:03:06]} 6... Ne4 {[%clk 0:03:05.7]} 7.
d4 {[%clk 0:03:06.8]} 7... d5 {[%clk 0:03:07.2]} 8. Bb2 {[%clk 0:03:08]} 8...
Bf5 {[%clk 0:03:08.6]} 9. e3 {[%clk 0:03:05.5]} 9... a5 {[%clk 0:03:08.8]} 10.
Nc3 {[%clk 0:03:05.7]} 10... Nxc3 {[%clk 0:03:09.5]} 11. Bxc3 {[%clk 0:03:06.2]}
11... Be4 {[%clk 0:03:11.2]} 12. Qe2 {[%clk 0:03:03.5]} 12... Nd7 {[%clk
0:03:10.1]} 13. Bh3 {[%clk 0:02:55.9]} 13... a4 {[%clk 0:03:03.8]} 14. Rfd1
{[%clk 0:02:24.1]} 14... Nf6 {[%clk 0:02:39]} 15. Ne5 {[%clk 0:02:14.9]} 15...
Qb6 {[%clk 0:02:39.4]} 16. f3 {[%clk 0:02:09.7]} 16... Bf5 {[%clk 0:02:40.1]}
17. Bxf5 {[%clk 0:02:10.5]} 17... gxf5 {[%clk 0:02:42]} 18. b4 {[%clk
0:02:08.6]} 18... dxc4 {[%clk 0:02:40]} 19. Nxc4 {[%clk 0:02:02]} 19... Qb5
{[%clk 0:02:38.7]} 20. a3 {[%clk 0:01:50.3]} 20... Nd5 {[%clk 0:02:37.5]} 21.
Bd2 {[%clk 0:01:51.8]} 21... Rad8 {[%clk 0:02:28.8]} 22. Rac1 {[%clk 0:01:47.5]}
22... e6 {[%clk 0:02:13.7]} 23. Kf2 {[%clk 0:01:47.6]} 23... Qa6 {[%clk
0:02:08.2]} 24. Nb2 {[%clk 0:01:39.8]} 24... Qa7 {[%clk 0:02:08.6]} 25. Nd3
{[%clk 0:01:39]} 25... Nc7 {[%clk 0:01:58.6]} 26. Rc5 {[%clk 0:01:28.4]} 26...
Nb5 {[%clk 0:01:58.2]} 27. Bc1 {[%clk 0:01:29.9]} 27... Rd5 {[%clk 0:01:51.7]}
28. Qc2 {[%clk 0:01:25.8]} 28... Rfd8 {[%clk 0:01:25.3]} 29. Bb2 {[%clk
0:01:25.8]} 29... R5d7 {[%clk 0:01:12.3]} 30. h3 {[%clk 0:01:22.6]} 30... Bf8
{[%clk 0:00:43.8]} 31. g4 {[%clk 0:01:15.1]} 31... Qb8 {[%clk 0:00:43.7]} 32.
Kg2 {[%clk 0:01:14.1]} 32... Bxc5 {[%clk 0:00:42]} 33. Nxc5 {[%clk 0:01:14.5]}
33... Rd5 {[%clk 0:00:42.6]} 34. Qf2 {[%clk 0:00:55.5]} 34... e5 {[%clk
0:00:19.5]} 35. e4 {[%clk 0:00:47.5]} 35... R5d6 {[%clk 0:00:16.8]} 36. exf5
{[%clk 0:00:38.7]} 36... exd4 {[%clk 0:00:11.7]} 37. Ne4 {[%clk 0:00:39.5]}
37... Rd5 {[%clk 0:00:13]} 38. Qh4 {[%clk 0:00:40]} 38... Qe5 {[%clk 0:00:12.2]}
39. Re1 {[%clk 0:00:39.4]} 39... Kh8 {[%clk 0:00:10.9]} 40. Nf6 {[%clk
0:00:39.6]} 1-0

[Event "*** Titled Tuesday Blitz"]
[Site "Chess.com"]
[Date "2019.08.06"]
[Round "6"]
[White "tgpgoat"]
[Black "boasovietica"]
[Result "0-1"]
[WhiteElo "1961"]
[BlackElo "2454"]
[TimeControl "180+2"]
[EndTime "14:22:43 PDT"]
[Termination "boasovietica won by checkmate"]

1. Nf3 {[%clk 0:03:01.9]} 1... c5 {[%clk 0:03:00.4]} 2. e4 {[%clk 0:03:02.5]}
2... g6 {[%clk 0:02:59]} 3. c4 {[%clk 0:02:57.7]} 3... Bg7 {[%clk 0:02:59]} 4.
d4 {[%clk 0:02:58.3]} 4... cxd4 {[%clk 0:02:59.7]} 5. Nxd4 {[%clk 0:03:00.2]}
5... Nc6 {[%clk 0:03:00.2]} 6. Be3 {[%clk 0:03:00.1]} 6... Nf6 {[%clk 0:03:01]}
7. Nc3 {[%clk 0:03:01]} 7... d6 {[%clk 0:03:00.5]} 8. Be2 {[%clk 0:02:58.4]}
8... Nxd4 {[%clk 0:03:00.7]} 9. Bxd4 {[%clk 0:02:59.4]} 9... O-O {[%clk
0:03:01.6]} 10. O-O {[%clk 0:02:58.7]} 10... Bd7 {[%clk 0:03:02.7]} 11. Rc1
{[%clk 0:02:57.2]} 11... Bc6 {[%clk 0:03:03.6]} 12. f3 {[%clk 0:02:57.5]} 12...
Nd7 {[%clk 0:03:02]} 13. Be3 {[%clk 0:02:56]} 13... a5 {[%clk 0:03:01.5]} 14. b3
{[%clk 0:02:56.9]} 14... Nc5 {[%clk 0:03:02.1]} 15. Qd2 {[%clk 0:02:57.3]} 15...
Qb6 {[%clk 0:02:59.3]} 16. Rfd1 {[%clk 0:02:55.2]} 16... a4 {[%clk 0:02:32.6]}
17. Rb1 {[%clk 0:02:04.6]} 17... axb3 {[%clk 0:02:30.5]} 18. axb3 {[%clk
0:02:06.5]} 18... Ra3 {[%clk 0:01:55]} 19. Nb5 {[%clk 0:01:35.2]} 19... Bxb5
{[%clk 0:01:10.7]} 20. cxb5 {[%clk 0:01:34.6]} 20... Qc7 {[%clk 0:00:49.9]} 21.
Bc4 {[%clk 0:01:33.7]} 21... Rfa8 {[%clk 0:00:46.1]} 22. Qd5 {[%clk 0:01:16.2]}
22... Ne6 {[%clk 0:00:43.9]} 23. f4 {[%clk 0:00:55.6]} 23... Ra2 {[%clk
0:00:38]} 24. f5 {[%clk 0:00:50]} 24... Nd8 {[%clk 0:00:38.8]} 25. b6 {[%clk
0:00:19.6]} 25... Qc6 {[%clk 0:00:32.1]} 26. b4 {[%clk 0:00:19.6]} 26... Rc2
{[%clk 0:00:24.7]} 27. Bg5 {[%clk 0:00:16.9]} 27... Qxc4 {[%clk 0:00:21.4]} 28.
Bxe7 {[%clk 0:00:15]} 28... Qxd5 {[%clk 0:00:21.2]} 29. Rxd5 {[%clk 0:00:16.9]}
29... Nc6 {[%clk 0:00:19.5]} 30. Bxd6 {[%clk 0:00:17.1]} 30... Raa2 {[%clk
0:00:19.7]} 31. b5 {[%clk 0:00:15.1]} 31... Rxg2+ {[%clk 0:00:19.7]} 32. Kh1
{[%clk 0:00:16.6]} 32... Nd4 {[%clk 0:00:18.3]} 33. Rd1 {[%clk 0:00:15.6]} 33...
Nf3 {[%clk 0:00:18.2]} 34. Bg3 {[%clk 0:00:02.2]} 34... Rxh2+ {[%clk 0:00:18.4]}
35. Bxh2 {[%clk 0:00:02.7]} 35... Rxh2# {[%clk 0:00:19.9]} 0-1

[Event "*** Titled Tuesday Blitz"]
[Site "Chess.com"]
[Date "2019.08.06"]
[Round "6"]
[White "djano"]
[Black "edgarrodrigues"]
[Result "1-0"]
[WhiteElo "2341"]
[BlackElo "2400"]
[TimeControl "180+2"]
[EndTime "14:22:45 PDT"]
[Termination "djano won by resignation"]

1. e4 {[%clk 0:03:01.6]} 1... e6 {[%clk 0:03:00.9]} 2. d4 {[%clk 0:03:00.2]}
2... d5 {[%clk 0:03:01.9]} 3. Bd3 {[%clk 0:03:01.4]} 3... Nf6 {[%clk 0:03:02.5]}
4. e5 {[%clk 0:03:00.9]} 4... Nfd7 {[%clk 0:03:03.3]} 5. Ne2 {[%clk 0:02:59.7]}
5... c5 {[%clk 0:03:04.5]} 6. c3 {[%clk 0:02:51.1]} 6... Nc6 {[%clk 0:03:05.3]}
7. Nf4 {[%clk 0:02:51.6]} 7... cxd4 {[%clk 0:03:01.6]} 8. Nxe6 {[%clk
0:02:52.4]} 8... fxe6 {[%clk 0:02:52.2]} 9. Qh5+ {[%clk 0:02:51.9]} 9... Ke7
{[%clk 0:02:53]} 10. Bg5+ {[%clk 0:02:46.5]} 10... Nf6 {[%clk 0:02:54.2]} 11.
exf6+ {[%clk 0:02:45]} 11... gxf6 {[%clk 0:02:56]} 12. Bh4 {[%clk 0:02:31.9]}
12... Qa5 {[%clk 0:02:47.4]} 13. O-O {[%clk 0:02:30.1]} 13... dxc3 {[%clk
0:02:38.5]} 14. Nxc3 {[%clk 0:02:22.3]} 14... d4 {[%clk 0:02:39.6]} 15. Qf3
{[%clk 0:02:21.5]} 15... Bg7 {[%clk 0:02:34.4]} 16. Nb5 {[%clk 0:02:11.4]} 16...
a6 {[%clk 0:02:26.9]} 17. Qg3 {[%clk 0:02:11.7]} 17... Kf7 {[%clk 0:02:01.3]}
18. Nd6+ {[%clk 0:02:08.1]} 18... Kf8 {[%clk 0:01:58.8]} 19. Nxc8 {[%clk
0:01:58.2]} 19... Rxc8 {[%clk 0:01:57.2]} 20. Qd6+ {[%clk 0:01:59.2]} 20... Kf7
{[%clk 0:01:58.4]} 21. Rfe1 {[%clk 0:01:50.7]} 21... Qd5 {[%clk 0:01:23.1]} 22.
Qg3 {[%clk 0:01:23.4]} 22... Ne5 {[%clk 0:01:06.9]} 23. Be4 {[%clk 0:01:23]}
23... Qb5 {[%clk 0:01:07.3]} 24. a4 {[%clk 0:01:17.8]} 24... Qb4 {[%clk
0:01:02.6]} 25. f4 {[%clk 0:01:13.7]} 25... Ng6 {[%clk 0:01:02.2]} 26. f5 {[%clk
0:01:14.6]} 26... exf5 {[%clk 0:00:54.6]} 27. Bxf5 {[%clk 0:00:56.3]} 27... Rce8
{[%clk 0:00:50.5]} 28. Qc7+ {[%clk 0:00:53.9]} 28... Ne7 {[%clk 0:00:41.7]} 29.
Bd7 {[%clk 0:00:48.5]} 29... Ra8 {[%clk 0:00:21.2]} 30. Bg3 {[%clk 0:00:44.5]}
30... d3 {[%clk 0:00:18]} 31. Bd6 {[%clk 0:00:41.5]} 31... Qd4+ {[%clk
0:00:18.1]} 32. Kh1 {[%clk 0:00:42.9]} 32... Nd5 {[%clk 0:00:17.6]} 33. Be6+
{[%clk 0:00:40.3]} 33... Kg6 {[%clk 0:00:17.7]} 34. Qf7+ {[%clk 0:00:41.4]}
34... Kh6 {[%clk 0:00:19]} 35. Bxd5 {[%clk 0:00:40.1]} 35... Rhd8 {[%clk
0:00:16.1]} 36. Re4 {[%clk 0:00:39.3]} 1-0

[Event "*** Titled Tuesday Blitz"]
[Site "Chess.com"]
[Date "2019.08.06"]
[Round "6"]
[White "nOcHeaTiNgKiD"]
[Black "enriquetejedor"]
[Result "0-1"]
[WhiteElo "2448"]
[BlackElo "2568"]
[TimeControl "180+2"]
[EndTime "14:22:54 PDT"]
[Termination "enriquetejedor won on time"]

1. Nf3 {[%clk 0:03:01.9]} 1... d5 {[%clk 0:03:00.7]} 2. d4 {[%clk 0:03:02.2]}
2... Nf6 {[%clk 0:03:00.7]} 3. c4 {[%clk 0:03:01.8]} 3... c6 {[%clk 0:03:00.8]}
4. Nc3 {[%clk 0:03:01.7]} 4... dxc4 {[%clk 0:02:48.4]} 5. e4 {[%clk 0:03:01.9]}
5... b5 {[%clk 0:02:47.6]} 6. Be2 {[%clk 0:03:02]} 6... b4 {[%clk 0:02:42.2]} 7.
Na4 {[%clk 0:03:01.9]} 7... Nxe4 {[%clk 0:02:43.3]} 8. Bxc4 {[%clk 0:03:02.2]}
8... Nd6 {[%clk 0:02:42.2]} 9. Bd3 {[%clk 0:02:58.8]} 9... Bg4 {[%clk
0:02:25.3]} 10. h3 {[%clk 0:02:56.7]} 10... Bh5 {[%clk 0:02:23.4]} 11. Bg5
{[%clk 0:02:48.7]} 11... h6 {[%clk 0:02:23.9]} 12. Bh4 {[%clk 0:02:43.2]} 12...
g5 {[%clk 0:02:19.2]} 13. g4 {[%clk 0:02:38.5]} 13... gxh4 {[%clk 0:02:06.2]}
14. gxh5 {[%clk 0:02:38.6]} 14... Nd7 {[%clk 0:02:05]} 15. Rg1 {[%clk
0:02:11.7]} 15... Qa5 {[%clk 0:01:51.8]} 16. b3 {[%clk 0:01:58.1]} 16... Qxh5
{[%clk 0:01:25.9]} 17. Rc1 {[%clk 0:01:53.7]} 17... Rc8 {[%clk 0:01:26.7]} 18.
Rg4 {[%clk 0:01:51.9]} 18... Qd5 {[%clk 0:01:14.5]} 19. Qe2 {[%clk 0:01:35.4]}
19... e6 {[%clk 0:00:58.8]} 20. Nc5 {[%clk 0:01:29.6]} 20... h5 {[%clk
0:00:42.8]} 21. Rg5 {[%clk 0:01:26.6]} 21... f5 {[%clk 0:00:27.7]} 22. Nxe6
{[%clk 0:01:22.9]} 22... Ne4 {[%clk 0:00:25.5]} 23. Bc4 {[%clk 0:01:08.8]} 23...
Qa5 {[%clk 0:00:21.5]} 24. Rg6 {[%clk 0:00:42.9]} 24... Bh6 {[%clk 0:00:13.3]}
25. Rxh6 {[%clk 0:00:36.1]} 25... Rxh6 {[%clk 0:00:13.5]} 26. Qe3 {[%clk
0:00:33.8]} 26... Rg6 {[%clk 0:00:12.1]} 27. Nf4 {[%clk 0:00:29.1]} 27... Rg7
{[%clk 0:00:10.2]} 28. Nxh5 {[%clk 0:00:28.8]} 28... Re7 {[%clk 0:00:11.4]} 29.
Qh6 {[%clk 0:00:20.9]} 29... Kd8 {[%clk 0:00:12.1]} 30. Kf1 {[%clk 0:00:20.7]}
30... Qxa2 {[%clk 0:00:12.7]} 31. Be2 {[%clk 0:00:17.6]} 31... Ng3+ {[%clk
0:00:08.3]} 32. Nxg3 {[%clk 0:00:18.4]} 32... hxg3 {[%clk 0:00:09.5]} 33. Re1
{[%clk 0:00:17.6]} 33... g2+ {[%clk 0:00:10]} 34. Kxg2 {[%clk 0:00:19.1]} 34...
Rxe2 {[%clk 0:00:11.3]} 35. Qh8+ {[%clk 0:00:20.4]} 35... Kc7 {[%clk 0:00:12.2]}
36. Rf1 {[%clk 0:00:21.8]} 36... Rxh8 {[%clk 0:00:12.7]} 0-1

[Event "*** Titled Tuesday Blitz"]
[Site "Chess.com"]
[Date "2019.08.06"]
[Round "6"]
[White "ChrisTool2"]
[Black "HanSchut"]
[Result "1-0"]
[WhiteElo "2282"]
[BlackElo "2203"]
[TimeControl "180+2"]
[EndTime "14:22:54 PDT"]
[Termination "ChrisTool2 won on time"]

1. d4 {[%clk 0:02:47.4]} 1... Nf6 {[%clk 0:02:59.3]} 2. c4 {[%clk 0:02:46.7]}
2... g6 {[%clk 0:03:00.7]} 3. f3 {[%clk 0:02:47.3]} 3... d5 {[%clk 0:03:00.7]}
4. cxd5 {[%clk 0:02:47.6]} 4... Nxd5 {[%clk 0:02:54.9]} 5. e4 {[%clk 0:02:49.2]}
5... Nb6 {[%clk 0:02:53.3]} 6. Nc3 {[%clk 0:02:50.8]} 6... Bg7 {[%clk
0:02:50.7]} 7. Be3 {[%clk 0:02:52.2]} 7... O-O {[%clk 0:02:41.5]} 8. Qd2 {[%clk
0:02:53.1]} 8... e5 {[%clk 0:02:36.5]} 9. d5 {[%clk 0:02:50.3]} 9... c6 {[%clk
0:02:34.3]} 10. O-O-O {[%clk 0:02:44.6]} 10... cxd5 {[%clk 0:02:31.3]} 11. Nxd5
{[%clk 0:02:39.8]} 11... Be6 {[%clk 0:02:03.2]} 12. h4 {[%clk 0:02:31.1]} 12...
N8d7 {[%clk 0:01:56.4]} 13. h5 {[%clk 0:01:56.9]} 13... Rc8+ {[%clk 0:01:52.7]}
14. Kb1 {[%clk 0:01:58.2]} 14... Nxd5 {[%clk 0:01:49.9]} 15. exd5 {[%clk
0:01:56.5]} 15... Bf5+ {[%clk 0:01:51.4]} 16. Bd3 {[%clk 0:01:55.5]} 16... Qf6
{[%clk 0:01:30]} 17. Be4 {[%clk 0:01:33.7]} 17... Nc5 {[%clk 0:01:16.4]} 18.
Bxc5 {[%clk 0:01:19.4]} 18... Rxc5 {[%clk 0:01:18.3]} 19. Ne2 {[%clk 0:01:15]}
19... Rc4 {[%clk 0:01:05.4]} 20. Nc3 {[%clk 0:01:07.5]} 20... b5 {[%clk
0:00:55]} 21. g4 {[%clk 0:00:53]} 21... Bxe4+ {[%clk 0:00:50.8]} 22. fxe4 {[%clk
0:00:47.9]} 22... b4 {[%clk 0:00:48]} 23. Na4 {[%clk 0:00:40.4]} 23... Rxe4
{[%clk 0:00:43.9]} 24. d6 {[%clk 0:00:40.8]} 24... Rd4 {[%clk 0:00:38.6]} 25.
Qc2 {[%clk 0:00:23.5]} 25... Qxd6 {[%clk 0:00:29.7]} 26. Rdf1 {[%clk 0:00:20.2]}
26... Rd2 {[%clk 0:00:23.6]} 27. Qc4 {[%clk 0:00:20.9]} 27... Qd7 {[%clk
0:00:16.8]} 28. hxg6 {[%clk 0:00:21.5]} 28... hxg6 {[%clk 0:00:17.5]} 29. Nc5
{[%clk 0:00:21.8]} 29... Qd4 {[%clk 0:00:09.4]} 30. Qxd4 {[%clk 0:00:13.8]}
30... Rxd4 {[%clk 0:00:11.3]} 31. g5 {[%clk 0:00:11.6]} 31... e4 {[%clk
0:00:11]} 32. Rh4 {[%clk 0:00:11.2]} 32... Rd2 {[%clk 0:00:11.2]} 33. Na4 {[%clk
0:00:10]} 33... e3 {[%clk 0:00:12.3]} 34. Re4 {[%clk 0:00:10.6]} 34... Bd4
{[%clk 0:00:09.9]} 35. Re7 {[%clk 0:00:08.1]} 35... Rf2 {[%clk 0:00:06.6]} 36.
Re1 {[%clk 0:00:07.8]} 36... Rc8 {[%clk 0:00:06.9]} 37. Re4 {[%clk 0:00:08.2]}
1-0

[Event "*** Titled Tuesday Blitz"]
[Site "Chess.com"]
[Date "2019.08.06"]
[Round "6"]
[White "Adham_Fawzy"]
[Black "Heineccius"]
[Result "0-1"]
[WhiteElo "2712"]
[BlackElo "2560"]
[TimeControl "180+2"]
[EndTime "14:22:55 PDT"]
[Termination "Heineccius won by resignation"]

1. e4 {[%clk 0:03:01.9]} 1... c5 {[%clk 0:03:00.3]} 2. Nf3 {[%clk 0:03:03]} 2...
e6 {[%clk 0:02:59.6]} 3. g3 {[%clk 0:03:03.4]} 3... d5 {[%clk 0:02:59.1]} 4.
exd5 {[%clk 0:03:05.3]} 4... Qxd5 {[%clk 0:02:58.7]} 5. Bg2 {[%clk 0:03:05.7]}
5... Nc6 {[%clk 0:02:59.7]} 6. O-O {[%clk 0:03:06.7]} 6... Qd7 {[%clk
0:02:58.3]} 7. b3 {[%clk 0:03:07.1]} 7... Be7 {[%clk 0:02:58.1]} 8. Bb2 {[%clk
0:03:08.1]} 8... Bf6 {[%clk 0:02:59]} 9. Nc3 {[%clk 0:03:05.6]} 9... Nge7 {[%clk
0:02:56.5]} 10. Rb1 {[%clk 0:02:56]} 10... b6 {[%clk 0:02:50]} 11. Qe2 {[%clk
0:02:48.4]} 11... Bb7 {[%clk 0:02:44.3]} 12. Rfd1 {[%clk 0:02:49.2]} 12... O-O
{[%clk 0:02:41.6]} 13. Ne4 {[%clk 0:02:42.4]} 13... Bxb2 {[%clk 0:02:40.9]} 14.
Rxb2 {[%clk 0:02:44.3]} 14... Nf5 {[%clk 0:02:28.5]} 15. c3 {[%clk 0:02:39.4]}
15... Rfd8 {[%clk 0:02:25.2]} 16. d3 {[%clk 0:02:35.5]} 16... a5 {[%clk
0:02:16.6]} 17. a4 {[%clk 0:02:29.4]} 17... Ba6 {[%clk 0:02:12]} 18. Rbd2 {[%clk
0:02:28.3]} 18... Qc7 {[%clk 0:02:10.1]} 19. h4 {[%clk 0:02:28.3]} 19... Rd7
{[%clk 0:02:01.6]} 20. Neg5 {[%clk 0:02:24.4]} 20... Re7 {[%clk 0:01:33.9]} 21.
Ne5 {[%clk 0:02:20.5]} 21... Bb7 {[%clk 0:01:26]} 22. Nexf7 {[%clk 0:02:15.9]}
22... Rxf7 {[%clk 0:01:13.4]} 23. Qxe6 {[%clk 0:02:16.4]} 23... Nd8 {[%clk
0:00:53.4]} 24. Qe8+ {[%clk 0:02:01.8]} 24... Rf8 {[%clk 0:00:51.1]} 25. Re1
{[%clk 0:02:01.1]} 25... Bxg2 {[%clk 0:00:37.8]} 26. Kxg2 {[%clk 0:02:03]} 26...
h6 {[%clk 0:00:27.1]} 27. Qe4 {[%clk 0:01:41.3]} 27... Qc6 {[%clk 0:00:23.2]}
28. Qxc6 {[%clk 0:01:39.8]} 28... Nxc6 {[%clk 0:00:24.6]} 29. Ne6 {[%clk
0:01:40.3]} 29... Rfe8 {[%clk 0:00:25.9]} 30. Rde2 {[%clk 0:01:41.5]} 30... Rac8
{[%clk 0:00:24.8]} 31. h5 {[%clk 0:01:38.3]} 31... Kf7 {[%clk 0:00:23.3]} 32. g4
{[%clk 0:01:37.6]} 32... Nd6 {[%clk 0:00:22.1]} 33. f4 {[%clk 0:01:35.7]} 33...
Nd8 {[%clk 0:00:18.2]} 34. f5 {[%clk 0:01:35.4]} 34... Nxe6 {[%clk 0:00:19]} 35.
Rxe6 {[%clk 0:01:34.7]} 35... Rxe6 {[%clk 0:00:19.9]} 36. Rxe6 {[%clk
0:01:36.5]} 36... Rd8 {[%clk 0:00:20.7]} 37. Kf2 {[%clk 0:01:34.1]} 37... Nc8
{[%clk 0:00:21.6]} 38. Rc6 {[%clk 0:01:17.1]} 38... Ke7 {[%clk 0:00:14.6]} 39.
Ke3 {[%clk 0:01:16.3]} 39... Re8 {[%clk 0:00:14.3]} 40. Kd2 {[%clk 0:01:13.9]}
40... Kd7 {[%clk 0:00:14.4]} 41. Rg6 {[%clk 0:01:14.6]} 41... Re7 {[%clk
0:00:15.8]} 42. f6 {[%clk 0:01:14.6]} 42... gxf6 {[%clk 0:00:15.9]} 43. Rxh6
{[%clk 0:01:15.9]} 43... Rg7 {[%clk 0:00:14.9]} 44. Rxf6 {[%clk 0:01:13.2]}
44... Rxg4 {[%clk 0:00:15.9]} 45. h6 {[%clk 0:01:14.5]} 45... Rh4 {[%clk
0:00:16.1]} 46. Rg6 {[%clk 0:01:13]} 46... Ne7 {[%clk 0:00:14.1]} 47. Rxb6
{[%clk 0:01:10.7]} 47... Rh2+ {[%clk 0:00:13.6]} 48. Ke3 {[%clk 0:01:05]} 48...
Nd5+ {[%clk 0:00:14.6]} 0-1

[Event "*** Titled Tuesday Blitz"]
[Site "Chess.com"]
[Date "2019.08.06"]
[Round "6"]
[White "ChadBiryani"]
[Black "Pakarma"]
[Result "1/2-1/2"]
[WhiteElo "2380"]
[BlackElo "2397"]
[TimeControl "180+2"]
[EndTime "14:22:57 PDT"]
[Termination "Game drawn by repetition"]

1. e4 {[%clk 0:02:59.2]} 1... c5 {[%clk 0:02:59.6]} 2. d4 {[%clk 0:02:58.9]}
2... cxd4 {[%clk 0:03:00.5]} 3. c3 {[%clk 0:03:00.2]} 3... d3 {[%clk 0:03:01.9]}
4. Nf3 {[%clk 0:03:00.5]} 4... Nc6 {[%clk 0:03:03.8]} 5. c4 {[%clk 0:03:01.1]}
5... Nf6 {[%clk 0:03:03.6]} 6. Bxd3 {[%clk 0:03:00.2]} 6... d6 {[%clk
0:02:55.8]} 7. Nc3 {[%clk 0:03:00.3]} 7... e5 {[%clk 0:02:56.2]} 8. h3 {[%clk
0:03:00.3]} 8... Be7 {[%clk 0:02:57.6]} 9. Be3 {[%clk 0:03:00.8]} 9... O-O
{[%clk 0:02:55.9]} 10. O-O {[%clk 0:03:01]} 10... Be6 {[%clk 0:02:54.3]} 11. Nd5
{[%clk 0:02:58.2]} 11... Ne8 {[%clk 0:02:47.6]} 12. a3 {[%clk 0:02:57.7]} 12...
Rc8 {[%clk 0:02:41.3]} 13. Rc1 {[%clk 0:02:52.8]} 13... g6 {[%clk 0:02:37.3]}
14. b4 {[%clk 0:02:40.1]} 14... f5 {[%clk 0:02:34]} 15. Nxe7+ {[%clk 0:02:26.3]}
15... Qxe7 {[%clk 0:02:29.9]} 16. Bg5 {[%clk 0:00:59.7]} 16... Qf7 {[%clk
0:02:25.1]} 17. c5 {[%clk 0:00:57.3]} 17... d5 {[%clk 0:02:11.7]} 18. exd5
{[%clk 0:00:47.3]} 18... Bxd5 {[%clk 0:02:11.6]} 19. Be2 {[%clk 0:00:45.8]}
19... e4 {[%clk 0:02:04.1]} 20. Nd4 {[%clk 0:00:44.7]} 20... Nxd4 {[%clk
0:02:03.9]} 21. Qxd4 {[%clk 0:00:46.6]} 21... Nc7 {[%clk 0:01:57.8]} 22. Bh6
{[%clk 0:00:38.5]} 22... Rfd8 {[%clk 0:01:54.7]} 23. Rfd1 {[%clk 0:00:35.5]}
23... Ne6 {[%clk 0:01:40.9]} 24. Qe5 {[%clk 0:00:35.1]} 24... Bb3 {[%clk
0:01:35.5]} 25. Rxd8+ {[%clk 0:00:24.5]} 25... Rxd8 {[%clk 0:01:37.4]} 26. b5
{[%clk 0:00:22.6]} 26... Nd4 {[%clk 0:01:24]} 27. Bf1 {[%clk 0:00:18.4]} 27...
Be6 {[%clk 0:00:35.5]} 28. Rc4 {[%clk 0:00:09]} 28... Nxb5 {[%clk 0:00:23.3]}
29. c6 {[%clk 0:00:10.1]} 29... Nd6 {[%clk 0:00:21]} 30. c7 {[%clk 0:00:09.2]}
30... Rc8 {[%clk 0:00:14.1]} 31. Qxd6 {[%clk 0:00:10]} 31... Bxc4 {[%clk
0:00:15.1]} 32. Bxc4 {[%clk 0:00:10.2]} 32... Qxc4 {[%clk 0:00:17]} 33. Qd7
{[%clk 0:00:10.2]} 33... Qxc7 {[%clk 0:00:14.6]} 34. Qe6+ {[%clk 0:00:11.2]}
34... Kh8 {[%clk 0:00:12.7]} 35. Qf6+ {[%clk 0:00:11.3]} 35... Kg8 {[%clk
0:00:14.2]} 36. Qe6+ {[%clk 0:00:12.5]} 36... Kh8 {[%clk 0:00:15.3]} 37. Qf6+
{[%clk 0:00:13.7]} 37... Kg8 {[%clk 0:00:16.3]} 38. Qe6+ {[%clk 0:00:08.1]}
1/2-1/2

[Event "*** Titled Tuesday Blitz"]
[Site "Chess.com"]
[Date "2019.08.06"]
[Round "6"]
[White "vladimirdamjanovic"]
[Black "marcodobrikov"]
[Result "1-0"]
[WhiteElo "2633"]
[BlackElo "2442"]
[TimeControl "180+2"]
[EndTime "14:23:00 PDT"]
[Termination "vladimirdamjanovic won by checkmate"]

1. e4 {[%clk 0:03:01.9]} 1... c5 {[%clk 0:03:00.3]} 2. Nf3 {[%clk 0:03:02.7]}
2... d6 {[%clk 0:03:00.7]} 3. d4 {[%clk 0:03:04.2]} 3... cxd4 {[%clk 0:03:02]}
4. Nxd4 {[%clk 0:03:06.1]} 4... Nf6 {[%clk 0:03:03]} 5. Nc3 {[%clk 0:03:07.6]}
5... a6 {[%clk 0:03:03.9]} 6. Qf3 {[%clk 0:03:08.9]} 6... e6 {[%clk 0:02:42.6]}
7. g4 {[%clk 0:03:03.1]} 7... Nc6 {[%clk 0:02:43.1]} 8. Nxc6 {[%clk 0:02:56.7]}
8... bxc6 {[%clk 0:02:45]} 9. g5 {[%clk 0:02:54.5]} 9... Nd7 {[%clk 0:02:44.9]}
10. h4 {[%clk 0:02:41.6]} 10... Be7 {[%clk 0:02:11.5]} 11. b3 {[%clk 0:02:38.6]}
11... e5 {[%clk 0:02:04.6]} 12. Bb2 {[%clk 0:02:27.4]} 12... Nc5 {[%clk
0:02:01.4]} 13. Bh3 {[%clk 0:02:24.2]} 13... Bxh3 {[%clk 0:01:59.8]} 14. Qxh3
{[%clk 0:02:23.1]} 14... Ne6 {[%clk 0:02:01.7]} 15. Ne2 {[%clk 0:02:19.7]} 15...
O-O {[%clk 0:01:58.9]} 16. O-O-O {[%clk 0:02:20.4]} 16... a5 {[%clk 0:01:51.7]}
17. a4 {[%clk 0:02:20.7]} 17... Qb6 {[%clk 0:01:45]} 18. Rhf1 {[%clk 0:02:05.6]}
18... Rab8 {[%clk 0:01:38.3]} 19. f4 {[%clk 0:01:58.3]} 19... exf4 {[%clk
0:01:28.9]} 20. Nxf4 {[%clk 0:01:59.3]} 20... Nc5 {[%clk 0:01:29.3]} 21. Qc3
{[%clk 0:01:39.1]} 21... f6 {[%clk 0:01:29.1]} 22. g6 {[%clk 0:01:31.2]} 22...
h6 {[%clk 0:01:17.8]} 23. Qc4+ {[%clk 0:01:29.5]} 23... Kh8 {[%clk 0:01:17.6]}
24. Bd4 {[%clk 0:01:15.7]} 24... Qb4 {[%clk 0:01:12.1]} 25. Qxb4 {[%clk
0:01:12.5]} 25... Rxb4 {[%clk 0:01:11.1]} 26. Bxc5 {[%clk 0:01:11.1]} 26... dxc5
{[%clk 0:01:13]} 27. Rfe1 {[%clk 0:01:01.3]} 27... c4 {[%clk 0:01:13.4]} 28. Rd7
{[%clk 0:00:56.9]} 28... Re8 {[%clk 0:01:13.7]} 29. Ne6 {[%clk 0:00:39.1]} 29...
Bf8 {[%clk 0:00:58.6]} 30. Rf7 {[%clk 0:00:37.4]} 30... Kg8 {[%clk 0:00:55.8]}
31. Rd1 {[%clk 0:00:33.2]} 31... cxb3 {[%clk 0:00:42.4]} 32. Rdd7 {[%clk
0:00:32.7]} 32... Rxe4 {[%clk 0:00:17]} 33. Nxf8 {[%clk 0:00:21.7]} 33... b2+
{[%clk 0:00:16]} 34. Kxb2 {[%clk 0:00:19.4]} 34... Rb8+ {[%clk 0:00:16.2]} 35.
Kc3 {[%clk 0:00:19.3]} 35... Rbb4 {[%clk 0:00:10.7]} 36. Rxg7+ {[%clk
0:00:15.9]} 36... Kxf8 {[%clk 0:00:10.9]} 37. Rdf7+ {[%clk 0:00:16.3]} 37... Ke8
{[%clk 0:00:12.8]} 38. Rg8# {[%clk 0:00:17.6]} 1-0